[Event "NJSK 2022 Jeugd B"]
[Site "Almelo, Netherlands"]
[Date "2022.05.07"]
[Round "7.7"]
[White "De Heij, Mees"]
[Black "Van Egmond, Tom"]
[Result "1/2-1/2"]
[TimeControl "90min/40moves + 30min + 30sec/move"]
[WhiteElo "1622"]
[BlackElo "1672"]

1. e4 {[%clk 01:30:57]} {[%emt 00:00:01]} e5 {[%clk 01:30:48]} {[%emt
00:00:13]} 2. Nf3 {[%clk 01:31:15]} {[%emt 00:00:12]} Nc6 {[%clk 01:30:58]}
{[%emt 00:00:21]} 3. Bc4 {[%clk 01:30:39]} {[%emt 00:01:06]} Nf6 {[%clk
01:31:20]} {[%emt 00:00:07]} 4. Nc3 {[%clk 01:30:56]} {[%emt 00:00:12]} Nxe4
{[%clk 01:30:40]} {[%emt 00:01:10]} 5. Nxe4 {[%clk 01:31:00]} {[%emt 00:00:25]}
d5 {[%clk 01:31:06]} {[%emt 00:00:05]} 6. Bxd5 {[%clk 01:21:15]} {[%emt
00:10:15]} Qxd5 {[%clk 01:31:29]} {[%emt 00:00:07]} 7. Nc3 {[%clk 01:21:37]}
{[%emt 00:00:07]} Qd8 {[%clk 01:26:33]} {[%emt 00:05:27]} 8. h3 {[%clk
01:20:12]} {[%emt 00:01:55]} Be6 {[%clk 01:20:32]} {[%emt 00:06:31]} 9. d3
{[%clk 01:19:41]} {[%emt 00:01:01]} f6 {[%clk 01:19:19]} {[%emt 00:01:43]} 10.
O-O {[%clk 01:06:54]} {[%emt 00:13:17]} Qd7 {[%clk 01:19:10]} {[%emt 00:00:38]}
11. Re1 {[%clk 01:05:22]} {[%emt 00:02:02]} O-O-O {[%clk 01:15:46]} {[%emt
00:03:54]} 12. Qe2 {[%emt 00:08:26]} g5 {[%clk 01:11:48]} 13. Nh2 {[%clk
00:50:15]} {[%emt 00:12:09]} h5 {[%clk 01:09:15]} {[%emt 00:03:04]} 14. Ne4
{[%clk 00:43:36]} {[%emt 00:07:09]} Be7 {[%clk 01:05:31]} {[%emt 00:04:14]} 15.
Be3 {[%clk 00:28:41]} {[%emt 00:15:24]} Rdg8 {[%clk 00:58:16]} {[%emt
00:07:45]} 16. f3 {[%clk 00:22:19]} {[%emt 00:06:52]} g4 {[%clk 00:40:59]}
{[%emt 00:17:47]} 17. fxg4 {[%clk 00:17:48]} {[%emt 00:05:02]} hxg4 {[%clk
00:41:22]} {[%emt 00:00:07]} 18. Nxg4 {[%clk 00:17:39]} {[%emt 00:00:38]} f5
{[%clk 00:41:22]} {[%emt 00:00:30]} 19. Ngf6 {[%clk 00:17:03]} {[%emt
00:01:07]} Bxf6 {[%clk 00:41:25]} {[%emt 00:00:26]} 20. Nxf6 {[%clk 00:17:24]}
{[%emt 00:00:09]} Qg7 {[%clk 00:35:38]} {[%emt 00:06:18]} 21. Nxg8 {[%clk
00:17:28]} {[%emt 00:00:25]} Rxg8 {[%clk 00:35:09]} {[%emt 00:00:58]} 22. Qf3
{[%clk 00:16:23]} {[%emt 00:01:34]} f4 {[%clk 00:32:54]} {[%emt 00:02:47]} 23.
Bf2 {[%clk 00:16:20]} {[%emt 00:00:33]} Nb4 {[%clk 00:31:36]} {[%emt 00:01:48]}
24. Re2 {[%clk 00:15:55]} {[%emt 00:00:53]} Bd5 {[%clk 00:29:23]} {[%emt
00:02:44]} 25. Qg4+ {[%clk 00:15:31]} {[%emt 00:00:54]} Qxg4 {[%clk 00:29:51]}
{[%emt 00:00:02]} 26. hxg4 {[%clk 00:15:59]} {[%emt 00:00:02]} Rxg4 {[%clk
00:30:06]} {[%emt 00:00:16]} 27. Bc5 {[%clk 00:13:54]} {[%emt 00:02:35]} f3
{[%clk 00:22:03]} {[%emt 00:08:34]} 28. Rxe5 {[%clk 00:07:12]} {[%emt
00:07:12]} Rxg2+ {[%clk 00:22:25]} {[%emt 00:00:08]} 29. Kf1 {[%clk 00:07:32]}
{[%emt 00:00:10]} Nxc2 {[%clk 00:13:55]} {[%emt 00:09:00]} 30. Rc1 {[%clk
00:07:39]} {[%emt 00:00:23]} Bc6 {[%clk 00:12:06]} {[%emt 00:02:19]} 31. a3
{[%clk 00:06:43]} {[%emt 00:01:26]} Rd2 {[%clk 00:03:49]} {[%emt 00:08:46]} 32.
Bf2 {[%clk 00:06:02]} {[%emt 00:01:10]} a6 {[%clk 00:03:21]} {[%emt 00:01:00]}
33. Rc5 {[%clk 00:06:04]} {[%emt 00:00:27]} Bb5 {[%clk 00:03:32]} {[%emt
00:00:19]} 34. Rc3 {[%clk 00:05:53]} {[%emt 00:00:40]} Ba4 {[%clk 00:02:28]}
{[%emt 00:01:35]} 35. b3 {[%clk 00:05:56]} {[%emt 00:00:27]} Bb5 {[%clk
00:02:46]} {[%emt 00:00:12]} 36. a4 {[%clk 00:05:37]} {[%emt 00:00:49]} Bxd3+
{[%clk 00:03:10]} {[%emt 00:00:06]} 37. Rxd3 {[%clk 00:05:03]} {[%emt
00:01:04]} Rxd3 {[%clk 00:03:20]} {[%emt 00:00:20]} 38. Rxc2 {[%clk 00:05:22]}
{[%emt 00:00:10]} Rxb3 {[%clk 00:03:43]} {[%emt 00:00:07]} 39. Be1 {[%clk
00:04:53]} {[%emt 00:00:59]} Kd7 {[%clk 00:01:46]} {[%emt 00:02:28]} 40. Bg3
{[%clk 00:04:21]} {[%emt 00:01:01]} c6 {[%clk 00:01:50]} {[%emt 00:00:27]} 41.
a5 {[%clk 00:02:58]} {[%emt 00:01:51]} Rb5 {[%clk 00:00:45]} {[%emt 00:01:36]}
42. Rd2+ {[%clk 00:28:38]} {[%emt 00:04:49]} Kc8 {[%clk 00:16:19]} {[%emt
00:14:57]} 43. Ra2 {[%clk 00:28:00]} {[%emt 00:01:09]} b6 {[%clk 00:08:45]}
{[%emt 00:08:04]} 44. axb6 {[%clk 00:27:23]} {[%emt 00:01:06]} Rxb6 {[%clk
00:09:10]} {[%emt 00:00:05]} 45. Kf2 {[%clk 00:27:25]} {[%emt 00:00:27]} Rb3
{[%clk 00:08:44]} {[%emt 00:00:57]} 46. Rxa6 {[%clk 00:27:14]} {[%emt
00:00:41]} Kb7 {[%clk 00:09:03]} {[%emt 00:00:11]} 47. Ra2 {[%clk 00:27:18]}
{[%emt 00:00:26]} Kb6 {[%clk 00:08:53]} {[%emt 00:00:41]} 48. Rc2 {[%clk
00:26:59]} {[%emt 00:00:48]} Kb5 {[%clk 00:08:52]} {[%emt 00:00:31]} 49. Bd6
{[%clk 00:26:57]} {[%emt 00:00:32]} Kb6 {[%clk 00:08:22]} {[%emt 00:01:01]} 50.
Bc5+ {[%clk 00:26:55]} {[%emt 00:00:31]} Kb7 {[%clk 00:06:42]} {[%emt
00:02:10]} 51. Be3 {[%clk 00:27:15]} {[%emt 00:00:10]} Kc7 {[%clk 00:06:36]}
{[%emt 00:00:37]} 52. Kxf3 {[%clk 00:27:34]} {[%emt 00:00:11]} Kd6 {[%clk
00:06:52]} {[%emt 00:00:14]} 53. Ke4 {[%clk 00:26:02]} {[%emt 00:02:02]} Rb4+
{[%clk 00:06:42]} {[%emt 00:00:41]} 54. Kf5 {[%clk 00:25:59]} {[%emt 00:00:32]}
Rb5+ {[%clk 00:07:06]} {[%emt 00:00:07]} 55. Kf6 {[%clk 00:25:55]} {[%emt
00:00:34]} Kd5 {[%clk 00:00:35]} {[%emt 00:07:01]} 56. Rd2+ {[%clk 00:25:39]}
{[%emt 00:00:45]} Ke4 {[%clk 00:00:52]} {[%emt 00:00:13]} 57. Bg1 {[%clk
00:24:38]} {[%emt 00:01:31]} Rd5 {[%clk 00:00:44]} {[%emt 00:00:39]} 58. Rc2
{[%clk 00:23:39]} {[%emt 00:01:28]} Rf5+ {[%clk 00:00:46]} {[%emt 00:00:28]} 59.
Ke6 {[%clk 00:23:43]} {[%emt 00:00:26]} Re5+ {[%clk 00:01:15]} {[%emt
00:00:02]} 60. Kd6 {[%clk 00:23:38]} {[%emt 00:00:34]} Rg5 {[%clk 00:00:59]}
{[%emt 00:00:46]} 61. Bc5 {[%clk 00:20:27]} {[%emt 00:03:42]} Rg6+ {[%clk
00:01:27]} {[%emt 00:00:02]} 62. Kc7 {[%clk 00:20:17]} {[%emt 00:00:39]} Kd5
{[%clk 00:01:44]} {[%emt 00:00:13]} 63. Bb4 {[%clk 00:20:06]} {[%emt 00:00:40]}
Rh6 {[%clk 00:01:48]} {[%emt 00:00:27]} 64. Rd2+ {[%clk 00:20:08]} {[%emt
00:00:28]} Kc4 {[%clk 00:01:29]} {[%emt 00:00:49]} 65. Bd6 {[%clk 00:20:14]}
{[%emt 00:00:23]} Kc3 {[%clk 00:01:20]} {[%emt 00:00:39]} 66. Rf2 {[%clk
00:19:41]} {[%emt 00:01:03]} Kc4 {[%clk 00:00:56]} {[%emt 00:00:54]} 67. Kxc6
{[%clk 00:19:31]} {[%emt 00:00:40]} Kd3 {[%clk 00:01:13]} {[%emt 00:00:13]} 68.
Kd5 {[%clk 00:19:09]} {[%emt 00:00:52]} Rh5+ {[%clk 00:01:22]} {[%emt
00:00:21]} 69. Be5 {[%clk 00:19:28]} {[%emt 00:00:10]} Ke3 {[%clk 00:01:43]}
{[%emt 00:00:10]} 70. Rg2 {[%clk 00:19:44]} {[%emt 00:00:12]} Kf3 {[%clk
00:02:00]} {[%emt 00:00:14]} 71. Rg3+ {[%clk 00:19:56]} {[%emt 00:00:17]} Kf2
{[%clk 00:02:25]} {[%emt 00:00:07]} 72. Ra3 {[%clk 00:20:15]} {[%emt 00:00:11]}
Ke2 {[%clk 00:02:49]} {[%emt 00:00:06]} 73. Ke4 {[%clk 00:20:23]} {[%emt
00:00:21]} Kf2 {[%clk 00:01:50]} {[%emt 00:01:29]} 74. Ra2+ {[%clk 00:20:44]}
{[%emt 00:00:08]} Kf1 {[%clk 00:02:09]} {[%emt 00:00:12]} 75. Bg3 {[%clk
00:20:24]} {[%emt 00:00:49]} Rb5 {[%clk 00:02:00]} {[%emt 00:00:40]} 76. Bf4
{[%clk 00:17:39]} {[%emt 00:03:14]} Rb3 {[%clk 00:00:37]} {[%emt 00:01:55]} 77.
Be3 {[%clk 00:16:30]} {[%emt 00:01:38]} Rb7 {[%clk 00:01:01]} {[%emt 00:00:07]}
78. Kf3 {[%clk 00:16:42]} {[%emt 00:00:17]} Rf7+ {[%clk 00:01:28]} {[%emt
00:00:03]} 79. Bf4 {[%clk 00:17:02]} {[%emt 00:00:09]} Re7 {[%clk 00:01:53]}
{[%emt 00:00:06]} 80. Bg5 {[%clk 00:15:49]} {[%emt 00:01:43]} Rf7+ {[%clk
00:01:58]} {[%emt 00:00:25]} 81. Bf4 {[%clk 00:14:32]} {[%emt 00:01:46]} Re7
{[%clk 00:02:24]} {[%emt 00:00:05]} 82. Rf2+ {[%clk 00:14:30]} {[%emt
00:00:32]} Ke1 {[%clk 00:02:36]} {[%emt 00:00:18]} 83. Rc2 {[%clk 00:14:33]}
{[%emt 00:00:27]} Kf1 {[%clk 00:02:54]} {[%emt 00:00:13]} 1/2-1/2

[Event "NJSK 2022 Jeugd B"]
[Site "Almelo, Netherlands"]
[Date "2022.05.07"]
[Round "7.8"]
[White "Alvares, Thomas"]
[Black "Wierenga, Jael"]
[Result "0-1"]
[TimeControl "90min/40moves + 30min + 30sec/move"]
[WhiteElo "1789"]
[BlackElo "1691"]

1. e4 {[%clk 01:30:57]} {[%emt 00:00:03]} c5 {[%clk 01:30:57]} {[%emt
00:00:03]} 2. Nc3 {[%clk 01:31:23]} {[%emt 00:00:05]} e6 {[%clk 01:30:18]}
{[%emt 00:01:09]} 3. g3 {[%clk 01:30:20]} {[%emt 00:01:32]} b6 {[%clk
01:28:34]} {[%emt 00:02:14]} 4. Bg2 {[%clk 01:30:18]} {[%emt 00:00:32]} Bb7
{[%clk 01:29:00]} {[%emt 00:00:05]} 5. Nge2 {[%clk 01:30:29]} {[%emt 00:00:18]}
Nf6 {[%clk 01:28:15]} {[%emt 00:01:14]} 6. O-O {[%clk 01:29:19]} {[%emt
00:01:41]} d5 {[%clk 01:25:03]} {[%emt 00:03:42]} 7. exd5 {[%clk 01:25:50]}
{[%emt 00:03:59]} Nxd5 {[%clk 01:23:31]} {[%emt 00:02:02]} 8. Qe1 {[%clk
01:17:38]} {[%emt 00:08:41]} Be7 {[%clk 01:22:06]} {[%emt 00:01:56]} 9. Nf4
{[%clk 01:12:12]} {[%emt 00:05:55]} Na6 {[%clk 01:17:46]} {[%emt 00:04:51]} 10.
a3 {[%clk 01:11:42]} {[%emt 00:01:00]} Qd7 {[%clk 01:09:07]} {[%emt 00:09:08]}
11. Ncxd5 {[%clk 01:08:58]} {[%emt 00:03:14]} exd5 {[%clk 01:09:23]} {[%emt
00:00:15]} 12. Qe5 {[%clk 01:08:54]} {[%emt 00:00:34]} O-O {[%clk 01:03:06]}
{[%emt 00:06:47]} 13. Nxd5 {[%clk 01:05:37]} {[%emt 00:03:48]} Rfe8 {[%clk
00:50:07]} {[%emt 00:13:28]} 14. Qe4 {[%clk 01:01:06]} {[%emt 00:05:00]} Rab8
{[%clk 00:45:28]} {[%emt 00:05:09]} 15. Qd3 {[%clk 00:50:29]} {[%emt 00:11:08]}
Rbd8 {[%clk 00:39:57]} {[%emt 00:06:02]} 16. Nf4 {[%clk 00:39:03]} {[%emt
00:11:55]} Qa4 {[%clk 00:33:41]} {[%emt 00:06:47]} 17. b3 {[%clk 00:31:59]}
{[%emt 00:07:34]} Rxd3 {[%clk 00:26:52]} {[%emt 00:07:18]} 18. bxa4 {[%clk
00:32:23]} {[%emt 00:00:06]} Bxg2 {[%clk 00:25:15]} {[%emt 00:02:07]} 19. Kxg2
{[%clk 00:31:13]} {[%emt 00:01:41]} Rd4 {[%clk 00:21:36]} {[%emt 00:04:08]} 20.
Re1 {[%clk 00:31:28]} {[%emt 00:00:15]} Nc7 {[%clk 00:20:52]} {[%emt 00:01:15]}
21. d3 {[%clk 00:30:31]} {[%emt 00:01:26]} Bf6 {[%clk 00:18:25]} {[%emt
00:02:57]} 22. Bb2 {[%clk 00:28:20]} {[%emt 00:02:41]} Rxf4 {[%clk 00:18:00]}
{[%emt 00:00:55]} 23. gxf4 {[%clk 00:27:42]} {[%emt 00:01:07]} Bxb2 {[%clk
00:18:22]} {[%emt 00:00:09]} 24. Rxe8+ {[%clk 00:27:17]} {[%emt 00:00:55]} Nxe8
{[%clk 00:18:51]} 25. Rb1 {[%clk 00:27:31]} {[%emt 00:00:17]} Bc3 {[%clk
00:18:13]} {[%emt 00:01:08]} 26. Kf3 {[%clk 00:27:48]} {[%emt 00:00:12]} Nd6
{[%clk 00:18:04]} {[%emt 00:00:38]} 27. Rb3 {[%clk 00:27:54]} {[%emt 00:00:25]}
Bd2 {[%clk 00:14:50]} {[%emt 00:03:44]} 28. h3 {[%clk 00:27:20]} {[%emt
00:01:05]} f5 {[%clk 00:14:30]} {[%emt 00:00:50]} 29. Rb1 {[%clk 00:27:41]}
{[%emt 00:00:08]} Kf7 {[%clk 00:14:44]} {[%emt 00:00:16]} 30. Rd1 {[%clk
00:27:17]} {[%emt 00:00:54]} Bc3 {[%clk 00:15:01]} {[%emt 00:00:13]} 31. Rg1
{[%clk 00:26:57]} {[%emt 00:00:50]} Ke6 {[%clk 00:13:36]} {[%emt 00:01:55]} 32.
Rb1 {[%clk 00:25:54]} {[%emt 00:01:33]} Kd5 {[%clk 00:13:07]} {[%emt 00:00:59]}
33. Rb3 {[%clk 00:25:50]} {[%emt 00:00:34]} Bf6 {[%clk 00:12:46]} {[%emt
00:00:51]} 34. c4+ {[%clk 00:24:42]} {[%emt 00:01:38]} Kd4 {[%clk 00:09:59]}
{[%emt 00:03:17]} 35. a5 {[%clk 00:24:59]} {[%emt 00:00:14]} Bd8 {[%clk
00:09:22]} {[%emt 00:01:06]} 36. axb6 {[%clk 00:24:22]} {[%emt 00:01:08]} axb6
{[%clk 00:09:44]} {[%emt 00:00:08]} 37. Ke2 {[%clk 00:24:06]} {[%emt 00:00:46]}
Ne8 {[%clk 00:08:33]} {[%emt 00:01:41]} 38. a4 {[%clk 00:23:41]} {[%emt
00:00:55]} Bc7 {[%clk 00:07:22]} {[%emt 00:01:41]} 39. a5 {[%clk 00:23:10]}
{[%emt 00:01:01]} bxa5 {[%clk 00:07:43]} {[%emt 00:00:09]} 40. Rb7 {[%clk
00:23:23]} {[%emt 00:00:17]} Kc3 {[%clk 00:04:14]} {[%emt 00:03:59]} 41. Ra7
{[%clk 00:19:55]} {[%emt 00:03:58]} Kb3 {[%clk 00:28:52]} {[%emt 00:05:52]} 42.
Rb7+ {[%clk 00:48:38]} {[%emt 00:01:47]} Ka3 {[%clk 00:27:40]} {[%emt
00:01:41]} 43. Rb5 {[%clk 00:48:20]} {[%emt 00:00:48]} a4 {[%clk 00:20:43]}
{[%emt 00:07:28]} 44. Rxc5 {[%clk 00:44:48]} {[%emt 00:04:03]} Kb2 {[%clk
00:20:19]} {[%emt 00:00:54]} 45. Rb5+ {[%clk 00:44:14]} {[%emt 00:01:04]} Kc2
{[%clk 00:20:31]} {[%emt 00:00:17]} 46. Rb7 {[%clk 00:39:01]} {[%emt 00:05:43]}
a3 {[%clk 00:16:13]} {[%emt 00:04:48]} 47. Ra7 {[%clk 00:36:55]} {[%emt
00:02:36]} Kb3 {[%clk 00:15:58]} {[%emt 00:00:45]} 48. d4 {[%clk 00:29:58]}
{[%emt 00:07:28]} a2 {[%clk 00:15:45]} {[%emt 00:00:44]} 49. c5 {[%clk
00:26:44]} {[%emt 00:03:44]} Nd6 {[%clk 00:11:00]} {[%emt 00:05:15]} 50. cxd6
{[%clk 00:20:21]} {[%emt 00:06:52]} Bxd6 {[%clk 00:11:28]} {[%emt 00:00:03]} 51.
Kd1 {[%clk 00:20:22]} {[%emt 00:00:28]} Ba3 {[%clk 00:11:30]} {[%emt 00:00:28]}
0-1

[Event "NJSK 2022 Jeugd B"]
[Site "Almelo, Netherlands"]
[Date "2022.05.07"]
[Round "7.9"]
[White "Knol, Daniel"]
[Black "Aarts, Joaquin"]
[Result "1/2-1/2"]
[TimeControl "90min/40moves + 30min + 30sec/move"]
[WhiteElo "1685"]
[BlackElo "1631"]

1. e4 {[%clk 01:30:59]} c5 {[%clk 01:30:54]} {[%emt 00:00:07]} 2. c3 {[%clk
01:31:26]} {[%emt 00:00:03]} d5 {[%clk 01:31:21]} {[%emt 00:00:04]} 3. exd5
{[%clk 01:31:53]} {[%emt 00:00:03]} Qxd5 {[%clk 01:31:46]} {[%emt 00:00:05]} 4.
Nf3 {[%clk 01:32:17]} {[%emt 00:00:04]} Nc6 {[%clk 01:32:07]} {[%emt 00:00:10]}
5. Na3 {[%clk 01:32:41]} {[%emt 00:00:06]} Bg4 {[%clk 01:32:33]} {[%emt
00:00:04]} 6. Be2 {[%clk 01:32:34]} {[%emt 00:00:37]} e5 {[%clk 01:32:36]}
{[%emt 00:00:27]} 7. d3 {[%clk 01:30:18]} {[%emt 00:02:46]} Nge7 {[%clk
01:25:27]} {[%emt 00:07:40]} 8. Nc2 {[%clk 01:29:43]} {[%emt 00:01:05]} Bxf3
{[%clk 01:25:06]} {[%emt 00:00:51]} 9. Bxf3 {[%clk 01:30:02]} {[%emt 00:00:11]}
Qd6 {[%clk 01:24:56]} {[%emt 00:00:40]} 10. Be3 {[%clk 01:28:44]} {[%emt
00:01:48]} Rd8 {[%clk 01:23:32]} {[%emt 00:01:54]} 11. Qe2 {[%clk 01:16:09]}
{[%emt 00:13:05]} g6 {[%clk 01:10:51]} {[%emt 00:13:12]} 12. Rd1 {[%clk
01:13:41]} {[%emt 00:02:58]} Bg7 {[%clk 01:07:53]} {[%emt 00:03:27]} 13. O-O
{[%clk 01:14:04]} {[%emt 00:00:07]} O-O {[%clk 01:07:15]} {[%emt 00:01:09]} 14.
g3 {[%clk 01:13:24]} {[%emt 00:01:09]} b6 {[%clk 01:05:15]} {[%emt 00:02:31]}
15. Bg2 {[%clk 01:13:41]} {[%emt 00:00:12]} Qc7 {[%clk 00:58:04]} {[%emt
00:07:41]} 16. f4 {[%clk 00:59:56]} {[%emt 00:14:14]} Nf5 {[%clk 00:46:15]}
{[%emt 00:12:20]} 17. fxe5 {[%clk 00:58:04]} {[%emt 00:02:22]} Nxe3 {[%clk
00:42:15]} {[%emt 00:04:30]} 18. Nxe3 {[%clk 00:58:02]} {[%emt 00:00:32]} Bxe5
{[%clk 00:41:50]} {[%emt 00:00:55]} 19. Ng4 {[%clk 00:35:49]} {[%emt 00:22:43]}
Bg7 {[%clk 00:39:34]} {[%emt 00:02:45]} 20. Qe4 {[%clk 00:31:05]} {[%emt
00:05:14]} Ne7 {[%clk 00:38:25]} {[%emt 00:01:39]} 21. Nf6+ {[%clk 00:30:35]}
{[%emt 00:01:00]} Bxf6 {[%clk 00:38:06]} {[%emt 00:00:50]} 22. Rxf6 {[%clk
00:31:02]} {[%emt 00:00:03]} Nf5 {[%clk 00:37:39]} {[%emt 00:00:56]} 23. Qc6
{[%clk 00:23:28]} {[%emt 00:08:05]} Qxc6 {[%clk 00:33:33]} {[%emt 00:04:36]} 24.
Rxc6 {[%clk 00:23:29]} {[%emt 00:00:28]} Ne3 {[%clk 00:33:45]} {[%emt
00:00:17]} 25. Rd2 {[%clk 00:23:52]} {[%emt 00:00:08]} Nxg2 {[%clk 00:33:46]}
{[%emt 00:00:29]} 26. Kxg2 {[%clk 00:24:17]} {[%emt 00:00:05]} Rd7 {[%clk
00:33:37]} {[%emt 00:00:39]} 27. Rf6 {[%clk 00:22:38]} {[%emt 00:02:08]}
1/2-1/2



[ePGN "0.1;DGT LiveChess/2.2.5"]